[Event "CCT Julius Baer-D3 2024"]
[Site "Online"]
[Date "2024.09.27"]
[Round "2.3"]
[White "Niemann, Hans Moke"]
[Black "Yoo, Christopher Woojin"]
[Result "1/2-1/2"]
[ECO "C42"]
[WhiteElo "2733"]
[BlackElo "2603"]
[Annotator "TA"]
[PlyCount "128"]
[EventDate "2024.09.25"]
[EventType "swiss"]
[EventCountry "NET"]
[SourceTitle "playchess.com"]
[Source "ChessBase"]
[SourceQuality "1"]
[TimeControl "600+2"]

{[%evp 39,128,-3,0,-10,-21,-10,0,0,0,0,0,0,0,0,0,0,0,0,0,0,0,0,0,0,0,0,0,0,0,0,0,0,0,0,0,0,0,0,0,0,0,0,0,0,-8,-14,0,0,0,0,0,0,15,0,0,0,0,0,0,0,0,0,0,0,0,0,0,0,0,0,0,0,0,0,0,0,0,0,0,0,0,0,0,0,0,0,0,0,0,0,0]} 1. e4 {[%emt 0:00:02]} e5 {[%emt 0:00:10]} 2. Nf3 {[%emt 0:00:05]} Nf6 {[%emt 0:00:01]} 3. Nxe5 {[%emt 0:00:01]} d6 {[%emt 0:00:01]} 4. Nf3 {[%emt 0:00:00]} Nxe4 {[%emt 0:00:00]} 5. Qe2 {[%emt 0:00:01]} Qe7 {[%emt 0:00:02]} 6. g3 {[%emt 0:00:00] C42: Petroff Defence: 3 Nxe5 and unusual White 3rd moves.} Nf6 {[%emt 0:00:41]} 7. Bg2 {[%emt 0:00:43]} Nc6 {[%emt 0:00:02]} 8. d3 {[%emt 0:00:19]} Qxe2+ {[%emt 0:00:13]} 9. Kxe2 {[%emt 0:00:00]} Bg4 {[%emt 0:00:09]} 10. c3 $146 {[%emt 0:00:01]} ({Predecessor:} 10. Re1 Be7 11. c3 Ne5 12. d4 Nxf3 13. Bxf3 Bxf3+ 14. Kxf3 Nd5 15. Bg5 O-O 16. Bxe7 {1-0 Uppal,M (1215)-Puhar,J Hong Kong Caissa Sunday op 2019 (1)}) 10... O-O-O {[%emt 0:00:04]} 11. h3 {[%emt 0:00:02]} Re8+ {[%emt 0:00:04]} 12. Be3 {[%emt 0:00:03]} Bxf3+ {[%emt 0:00:34]} 13. Bxf3 {[%emt 0:00:02]} d5 {[%emt 0:00:01]} 14. d4 {[%emt 0:00:11]} Ne7 {[%emt 0:00:38]} 15. Bg4+ {[%emt 0:00:48]} Nxg4 {[%emt 0:00:13]} 16. hxg4 {[%emt 0:00:00]} f5 {[%emt 0:00:03]} 17. g5 {[%emt 0:00:07]} Ng6 {[%emt 0:00:06]} 18. Kd3 {[%emt 0:00:08]} f4 {[%emt 0:00:41]} 19. gxf4 {[%emt 0:00:13]} Bd6 {[%emt 0:00:03]} 20. f5 {[%emt 0:00:01]} Nf4+ $1 {[%emt 0:00:01]} 21. Bxf4 {[%emt 0:00:27]} Bxf4 {[%emt 0:00:02]} 22. Nd2 {[%emt 0:00:00]} Bxg5 {[%emt 0:00:44]} 23. Nf3 {[%emt 0:00:10]} Bf6 {[%emt 0:00:01]} 24. Rae1 {[%emt 0:00:24]} Rxe1 {[%emt 0:00:03]} 25. Nxe1 {[%emt 0:00:03]} h6 {[%emt 0:00:06]} 26. Ng2 {[%emt 0:00:01]} Rf8 {[%emt 0:00:04]} 27. f4 {[%emt 0:00:20]} c6 {[%emt 0:00:11]} 28. Ne3 {[%emt 0:00:01]} Kd7 {[%emt 0:00:38]} 29. Ng4 {[%emt 0:00:05]} Bd8 {[%emt 0:01:01]} 30. Rh5 {[%emt 0:00:04]} Kd6 {[%emt 0:00:09]} 31. Ne5 {[%emt 0:00:02]} a5 {[%emt 0:00:16]} 32. a4 {[%emt 0:00:02]} b5 {[%emt 0:00:08]} 33. b3 {[%emt 0:00:04]} bxa4 {[%emt 0:00:03]} 34. bxa4 {[%emt 0:00:02]} Be7 {[%emt 0:00:06]} 35. Kc2 {[%emt 0:00:25]} Bd8 {[%emt 0:00:05]} 36. Kd3 {[%emt 0:00:11]} Bf6 {[%emt 0:00:02]} 37. Ng4 {[%emt 0:00:03]} Bd8 {[%emt 0:00:04]} 38. Ne3 {[%emt 0:00:03]} Rf7 {[%emt 0:00:01]} 39. Rh1 {[%emt 0:00:18]} Rb7 {[%emt 0:00:18]} 40. Rg1 {[%emt 0:00:05]} h5 {[%emt 0:00:02]} 41. Rh1 {[%emt 0:00:01]} h4 {[%emt 0:00:02]} 42. Ng2 {[%emt 0:00:03]} Rf7 {[%emt 0:00:09]} 43. Nxh4 {[%emt 0:00:03]} Bxh4 {[%emt 0:00:01]} 44. Rxh4 {[%emt 0:00:00]} Rxf5 {[%emt 0:00:01]} 45. Rg4 {[%emt 0:00:00]} Rf7 {[%emt 0:00:32]} 46. Rg6+ {[%emt 0:00:05]} Rf6 {[%emt 0:00:39]} 47. Rxg7 {[%emt 0:00:01]} Rxf4 {[%emt 0:00:02]} 48. Ra7 {[%emt 0:00:01]} Rf2 {[%emt 0:00:19]} 49. Rxa5 {[%emt 0:00:01]} Kc7 {[%emt 0:00:01]} 50. Rc5 {[%emt 0:00:05]} Ra2 {[%emt 0:00:02]} 51. a5 {[%emt 0:00:00]} Kd6 {[%emt 0:00:02]} 52. Ke3 {[%emt 0:00:03]} Kd7 {[%emt 0:00:01]} 53. Kf4 {[%emt 0:00:01]} Kd6 {[%emt 0:00:02]} 54. Kg5 {[%emt 0:00:03]} Kd7 {[%emt 0:00:04]} 55. Kf6 {[%emt 0:00:02]} Kd6 {[%emt 0:00:01]} 56. Kf7 {[%emt 0:00:00]} Kd7 {[%emt 0:00:03]} 57. Kf8 {[%emt 0:00:01]} Rf2+ {[%emt 0:00:05]} 58. Kg7 {[%emt 0:00:00]} Ra2 {[%emt 0:00:02]} 59. Kf6 {[%emt 0:00:01]} Kd6 {[%emt 0:00:02]} 60. Kf5 {[%emt 0:00:00]} Rf2+ {[%emt 0:00:04]} 61. Kg4 {[%emt 0:00:01]} Ra2 {[%emt 0:00:00]} 62. Kf3 {[%emt 0:00:01]} Kd7 {[%emt 0:00:01]} 63. Ke3 {[%emt 0:00:02]} Kd6 {[%emt 0:00:02]} 64. Kd3 {[%emt 0:00:00]} Kd7 {[%emt 0:00:00]} 1/2-1/2

[Event "CCT Julius Baer-D3 2024"]
[Site "Online"]
[Date "2024.09.27"]
[Round "2.3"]
[White "Navara, David"]
[Black "Bharath Subramaniyam H"]
[Result "1/2-1/2"]
[ECO "E15"]
[WhiteElo "2681"]
[BlackElo "2561"]
[Annotator "TA"]
[PlyCount "141"]
[EventDate "2024.09.25"]
[EventType "swiss"]
[EventCountry "NET"]
[SourceTitle "playchess.com"]
[Source "ChessBase"]
[SourceQuality "1"]
[TimeControl "600+2"]

{[%evp 70,141,16,0,0,0,0,0,0,0,0,0,0,0,9,14,12,16,55,68,77,29,43,44,41,41,47,4,7,0,0,0,0,-22,-22,-59,4622,-10,-8,-10,-2,-8,0,0,0,0,0,0,0,0,0,0,0,0,0,0,0,0,0,0,0,0,0,0,0,0,0,0,0,0,0,0,0,0]} 1. d4 {[%emt 0:00:02] Krasenkow,Michal} Nf6 {[%emt 0:00:04]} 2. c4 {[%emt 0:00:03]} e6 {[%emt 0:00:00]} 3. Nf3 {[%emt 0:00:01]} b6 {[%emt 0:00:05]} 4. g3 {[%emt 0:00:01]} Ba6 {[%emt 0:00:01]} 5. b3 {[%emt 0:00:02]} Bb4+ {[%emt 0:00:01]} 6. Bd2 {[%emt 0:00:01]} Be7 {[%emt 0:00:00]} 7. Bg2 {[%emt 0:00:09]} d5 {[%emt 0:00:01]} 8. cxd5 {[%emt 0:00:22]} exd5 {[%emt 0:00:00]} 9. Nc3 {[%emt 0:00:05]} O-O {[%emt 0:00:02]} 10. O-O {[%emt 0:00:03]} Re8 {[%emt 0:00:03]} 11. Ne5 {[%emt 0:00:07] E15: Queen's Indian: 4 g3 sidelines, 4 g3 Ba6 and 4 g3 Bb7 early deviations.} Bb7 {[%emt 0:00:01]} 12. Rc1 {[%emt 0:00:30]} Nbd7 {[%emt 0:00:03]} 13. Bf4 {[%emt 0:00:01]} Nf8 {[%emt 0:00:02]} 14. Nb5 {[%emt 0:00:19]} Ne6 {[%emt 0:00:23]} 15. Nc6 {[%emt 0:00:19]} Qd7 {[%emt 0:00:17]} 16. Nxe7+ {[%emt 0:00:54]} Rxe7 {[%emt 0:00:03]} 17. Nc3 {[%emt 0:00:30]} Nxf4 {[%emt 0:00:05]} 18. gxf4 {[%emt 0:00:00]} Ne4 $146 {[%emt 0:00:29]} ({Predecessor:} 18... a5 19. e3 Ba6 20. Re1 Rd8 21. Rc2 g6 22. Qd2 h5 23. Rec1 h4 24. h3 Qf5 {1-0 Praggnanandhaa,R (2608)-Karjakin,S (2757) NIC Classic Prelim rapid 2021 (5)}) 19. e3 {[%emt 0:00:11]} Re6 {[%emt 0:00:15]} 20. Bxe4 {[%emt 0:01:14]} dxe4 {[%emt 0:00:09]} 21. Kh1 {[%emt 0:00:01]} Rg6 {[%emt 0:01:10]} 22. Rg1 {[%emt 0:00:16]} Rd8 {[%emt 0:00:13]} 23. Qh5 {[%emt 0:00:16]} Re8 {[%emt 0:00:42]} 24. f5 {[%emt 0:00:14]} Rxg1+ {[%emt 0:00:13]} 25. Rxg1 {[%emt 0:00:00]} f6 {[%emt 0:00:01]} 26. Ne2 {[%emt 0:00:18]} Re7 {[%emt 0:01:00]} 27. Nf4 {[%emt 0:00:15]} Qe8 {[%emt 0:01:10]} 28. Qxe8+ {[%emt 0:00:17]} Rxe8 {[%emt 0:00:00]} 29. Nh5 {[%emt 0:00:01]} Re7 {[%emt 0:00:22]} 30. Nxf6+ {[%emt 0:00:02]} Kh8 {[%emt 0:00:01]} 31. Ng4 {[%emt 0:00:57]} Rf7 {[%emt 0:00:04]} 32. Rc1 {[%emt 0:00:02]} c6 {[%emt 0:00:11]} 33. f4 {[%emt 0:01:35]} Rxf5 {[%emt 0:01:34]} 34. Ne5 {[%emt 0:00:06]} g5 {[%emt 0:00:09]} 35. fxg5 {[%emt 0:00:03]} c5 {[%emt 0:00:02]} 36. h4 {[%emt 0:00:24]} cxd4 {[%emt 0:00:11]} 37. exd4 {[%emt 0:00:00]} e3+ {[%emt 0:00:21]} 38. Kg1 {[%emt 0:00:01]} Rf4 {[%emt 0:00:31]} 39. Re1 {[%emt 0:00:22]} Rxh4 {[%emt 0:00:32]} 40. Rxe3 {[%emt 0:00:02]} Rxd4 {[%emt 0:00:10]} 41. Nf7+ {[%emt 0:00:01]} Kg7 {[%emt 0:00:06]} 42. Re7 {[%emt 0:00:01]} Bd5 {[%emt 0:00:07]} 43. Ne5+ {[%emt 0:00:00]} Kg8 {[%emt 0:00:02]} 44. Rxa7 {[%emt 0:00:22]} Be4 {[%emt 0:00:11]} 45. Rd7 {[%emt 0:00:45]} (45. Kf2 $16 {Hoping for Ke3.} Bb1 46. Ra8+ Kg7 47. Ra7+ Kg8 48. Ra8+ Kg7 49. Nf3) 45... Rb4 {[%emt 0:00:12]} 46. Ng4 {[%emt 0:00:06]} Bb1 {[%emt 0:00:03]} 47. Nf6+ {[%emt 0:00:01]} Kh8 {[%emt 0:00:02]} 48. Kf2 {[%emt 0:00:04]} Rb5 $1 {[%emt 0:00:01]} 49. Nd5 {[%emt 0:00:10]} Bxa2 {[%emt 0:00:03]} 50. Nf6 {[%emt 0:00:03]} Bb1 {[%emt 0:00:04]} 51. Ke3 {[%emt 0:00:01]} Rxg5 {[%emt 0:00:03]} 52. Kd4 {[%emt 0:00:01]} Rg3 $2 {[%emt 0:00:06][%mdl 8192]} (52... h5 $15 53. Rd6 h4 54. Rxb6 h3) 53. b4 $2 {[%emt 0:00:03]} (53. Rd8+ $18 Kg7 54. Nh5+ Kf7 55. Nxg3) 53... Rf3 {[%emt 0:00:03]} 54. Ke5 {[%emt 0:00:02]} Re3+ {[%emt 0:00:03]} 55. Kf4 {[%emt 0:00:02]} Rb3 {[%emt 0:00:00]} 56. Kg5 {[%emt 0:00:02]} Rxb4 {[%emt 0:00:01]} 57. Rd8+ {[%emt 0:00:02]} Kg7 {[%emt 0:00:02]} 58. Rd7+ {[%emt 0:00:01]} Kf8 {[%emt 0:00:00]} 59. Nxh7+ {[%emt 0:00:02]} Bxh7 {[%emt 0:00:01]} 60. Rxh7 {[%emt 0:00:00]} Rd4 {[%emt 0:00:05]} 61. Kf6 {[%emt 0:00:03]} Ke8 {[%emt 0:00:02]} 62. Rb7 $1 {[%emt 0:00:03]} Rd6+ {[%emt 0:00:02]} 63. Ke5 {[%emt 0:00:01]} Rh6 {[%emt 0:00:01]} 64. Kd5 {[%emt 0:00:02]} Kd8 {[%emt 0:00:00]} 65. Kc4 {[%emt 0:00:01]} Kc8 {[%emt 0:00:01]} 66. Rf7 {[%emt 0:00:01]} Rc6+ {[%emt 0:00:00]} 67. Kb5 {[%emt 0:00:00]} Rc7 {[%emt 0:00:01]} 68. Rf6 {[%emt 0:00:02]} Kd7 {[%emt 0:00:03]} 69. Kxb6 {[%emt 0:00:01]} Rc1 {[%emt 0:00:01]} 70. Rf5 {[%emt 0:00:02]} Ke6 {[%emt 0:00:01]} 71. Rc5 {[%emt 0:00:03]} 1/2-1/2

[Event "CCT Julius Baer-D3 2024"]
[Site "Online"]
[Date "2024.09.27"]
[Round "2.3"]
[White "Alekseenko, Kirill"]
[Black "Caruana, Fabiano"]
[Result "0-1"]
[ECO "C50"]
[WhiteElo "2679"]
[BlackElo "2798"]
[Annotator "RC"]
[PlyCount "126"]
[EventDate "2024.09.25"]
[EventType "swiss"]
[EventCountry "NET"]
[SourceTitle "playchess.com"]
[Source "ChessBase"]
[SourceQuality "1"]
[TimeControl "600+2"]

1. e4 {[%emt 0:00:02]} e5 {[%emt 0:00:03]} 2. Nf3 {[%emt 0:00:01]} Nc6 {[%emt 0:00:01]} 3. Bc4 {[%emt 0:00:02]} Bc5 {[%emt 0:00:01]} 4. d3 {[%emt 0:00:01]} d6 {[%emt 0:00:01]} 5. a3 {[%emt 0:00:03]} h6 {[%emt 0:00:03]} 6. Nc3 {[%emt 0:00:03]} a6 {[%emt 0:00:52]} 7. Be3 {[%emt 0:00:02]} Nge7 {[%emt 0:00:04]} 8. Bxc5 {[%emt 0:00:02]} dxc5 {[%emt 0:00:00]} 9. Nd5 {[%emt 0:00:00]} Be6 {[%emt 0:00:09]} 10. Ne3 {[%emt 0:00:01]} Qd7 {[%emt 0:00:01]} 11. O-O {[%emt 0:00:06]} Ng6 {[%emt 0:00:05]} 12. Bxe6 {[%emt 0:00:05]} Qxe6 {[%emt 0:00:00]} 13. g3 {[%emt 0:00:00]} O-O {[%emt 0:00:02]} 14. a4 {[%emt 0:00:26]} a5 {[%emt 0:00:07]} 15. b3 {[%emt 0:00:04]} b6 {[%emt 0:00:04]} 16. Kg2 {[%emt 0:00:44]} Rad8 {[%emt 0:00:03]} 17. Qe2 {[%emt 0:00:23]} Nge7 {[%emt 0:00:10]} 18. Rae1 {[%emt 0:00:08]} Rde8 {[%emt 0:00:41]} 19. Qd1 {[%emt 0:00:02]} f5 {[%emt 0:00:24]} 20. exf5 {[%emt 0:00:12]} Nxf5 {[%emt 0:00:01]} 21. Nxf5 {[%emt 0:00:11]} Rxf5 {[%emt 0:00:00]} 22. Nd2 {[%emt 0:00:37]} Ref8 {[%emt 0:00:02]} 23. Re4 {[%emt 0:00:18]} Qd5 {[%emt 0:00:05]} 24. Nc4 {[%emt 0:00:09]} Qf7 {[%emt 0:00:24]} 25. f3 {[%emt 0:00:25]} Kh7 {[%emt 0:00:38]} 26. c3 {[%emt 0:00:42]} Rd8 {[%emt 0:00:50]} 27. Rfe1 {[%emt 0:00:10]} Qg6 {[%emt 0:00:28]} 28. R1e3 {[%emt 0:00:04]} Kh8 {[%emt 0:00:11]} 29. Qe2 {[%emt 0:00:07]} Qf7 {[%emt 0:01:01]} 30. Rh4 {[%emt 0:00:29]} Qd5 {[%emt 0:00:10]} 31. Rg4 {[%emt 0:00:15]} Rdf8 {[%emt 0:00:03]} 32. Rge4 {[%emt 0:00:02]} Qf7 {[%emt 0:00:06]} 33. Qd1 {[%emt 0:00:10]} Qf6 {[%emt 0:00:35]} 34. h3 {[%emt 0:01:01]} Kg8 {[%emt 0:00:27]} 35. Qe2 {[%emt 0:00:14]} Nd4 {[%emt 0:00:08]} 36. cxd4 {[%emt 0:00:22]} cxd4 {[%emt 0:00:01]} 37. Nxe5 {[%emt 0:00:09]} dxe3 {[%emt 0:00:03]} 38. Nd7 {[%emt 0:00:01]} Qc3 {[%emt 0:00:04]} 39. Nxf8 {[%emt 0:00:04]} Rxf8 {[%emt 0:00:00]} 40. Qxe3 {[%emt 0:00:15]} Qxb3 {[%emt 0:00:02]} 41. h4 {[%emt 0:00:10]} Qa2+ {[%emt 0:00:30]} 42. Kh3 {[%emt 0:00:03]} Qf7 {[%emt 0:00:00]} 43. Kg2 {[%emt 0:00:22]} Qa2+ {[%emt 0:00:03]} 44. Kh3 {[%emt 0:00:12]} Qf7 {[%emt 0:00:02]} 45. f4 {[%emt 0:00:01]} Rd8 {[%emt 0:00:03]} 46. d4 {[%emt 0:00:10]} Qd7+ {[%emt 0:00:08]} 47. g4 {[%emt 0:00:25]} h5 {[%emt 0:00:03]} 48. f5 {[%emt 0:00:24]} hxg4+ {[%emt 0:00:02]} 49. Kxg4 {[%emt 0:00:00]} Qxa4 {[%emt 0:00:37]} 50. h5 {[%emt 0:00:06]} Qd7 {[%emt 0:00:09]} 51. h6 {[%emt 0:00:27]} g6 {[%emt 0:00:41]} 52. h7+ {[%emt 0:00:29]} Kh8 {[%emt 0:00:13]} 53. Rf4 {[%emt 0:00:35]} gxf5+ {[%emt 0:00:08]} 54. Kg3 {[%emt 0:00:01]} Re8 {[%emt 0:00:06]} 55. Qf3 {[%emt 0:00:02]} Qg7+ {[%emt 0:00:12]} 56. Kh3 {[%emt 0:00:02]} Qh6+ {[%emt 0:00:09]} 57. Kg2 {[%emt 0:00:03]} Qg7+ {[%emt 0:00:07]} 58. Kf1 {[%emt 0:00:03]} Qe7 {[%emt 0:00:05]} 59. Qf2 {[%emt 0:00:08]} Rf8 {[%emt 0:00:10]} 60. d5 {[%emt 0:00:01]} Qe5 {[%emt 0:00:02]} 61. Kg2 {[%emt 0:00:04]} Qxd5+ {[%emt 0:00:01]} 62. Kh2 {[%emt 0:00:01]} Qe5 {[%emt 0:00:01]} 63. Kh3 {[%emt 0:00:00]} Rf7 {[%emt 0:00:04]} 0-1

[Event "CCT Julius Baer-D3 2024"]
[Site "Online"]
[Date "2024.09.27"]
[Round "2.3"]
[White "Gelfand, Boris"]
[Black "Korobov, Anton"]
[Result "1/2-1/2"]
[ECO "A07"]
[WhiteElo "2658"]
[BlackElo "2650"]
[Annotator "RC"]
[PlyCount "138"]
[EventDate "2024.09.25"]
[EventType "swiss"]
[EventCountry "NET"]
[SourceTitle "playchess.com"]
[Source "ChessBase"]
[SourceQuality "1"]
[TimeControl "600+2"]

1. Nf3 {[%emt 0:00:03]} d5 {[%emt 0:00:03]} 2. g3 {[%emt 0:00:01]} Bg4 {[%emt 0:00:02]} 3. Bg2 {[%emt 0:00:01]} Nd7 {[%emt 0:00:01]} 4. h3 {[%emt 0:00:09]} Bxf3 {[%emt 0:00:02]} 5. Bxf3 {[%emt 0:00:01]} c6 {[%emt 0:00:02]} 6. d3 {[%emt 0:00:05]} Ngf6 {[%emt 0:00:01]} 7. O-O {[%emt 0:00:03]} e5 {[%emt 0:00:01]} 8. e4 {[%emt 0:00:04]} Be7 {[%emt 0:00:01]} 9. exd5 {[%emt 0:00:14]} Nxd5 {[%emt 0:00:00]} 10. Re1 {[%emt 0:00:16]} O-O {[%emt 0:00:04]} 11. Bg2 {[%emt 0:00:14]} Bc5 {[%emt 0:00:31]} 12. Nc3 {[%emt 0:00:19]} Nxc3 {[%emt 0:00:12]} 13. bxc3 {[%emt 0:00:03]} Qa5 {[%emt 0:00:26]} 14. Bd2 {[%emt 0:00:28]} Rad8 {[%emt 0:00:20]} 15. d4 {[%emt 0:01:25]} Bb6 {[%emt 0:00:32]} 16. a4 {[%emt 0:01:01]} exd4 {[%emt 0:00:53]} 17. cxd4 {[%emt 0:00:02]} Qf5 {[%emt 0:00:02]} 18. c3 {[%emt 0:00:13]} Nf6 {[%emt 0:00:36]} 19. Qb1 {[%emt 0:00:55]} Qc8 {[%emt 0:00:17]} 20. Qb3 {[%emt 0:00:37]} Ba5 {[%emt 0:00:55]} 21. Bg5 {[%emt 0:00:32]} Rd6 {[%emt 0:00:25]} 22. Re5 {[%emt 0:00:03]} Bc7 {[%emt 0:00:33]} 23. a5 {[%emt 0:00:11]} h6 {[%emt 0:00:10]} 24. Bd2 {[%emt 0:00:12]} b5 {[%emt 0:00:33]} 25. axb6 {[%emt 0:00:23]} Bxb6 {[%emt 0:00:02]} 26. Bf4 {[%emt 0:00:14]} Nd5 {[%emt 0:00:08]} 27. Bd2 {[%emt 0:00:20]} Nc7 {[%emt 0:00:17]} 28. Bc1 {[%emt 0:00:28]} Re8 {[%emt 0:00:21]} 29. Ba3 {[%emt 0:00:04]} Rxe5 {[%emt 0:00:19]} 30. Bxd6 {[%emt 0:00:02]} Re6 {[%emt 0:00:07]} 31. Be5 {[%emt 0:00:13]} Qd7 {[%emt 0:00:27]} 32. h4 {[%emt 0:00:14]} Qe7 {[%emt 0:00:15]} 33. Kh2 {[%emt 0:00:22]} Rxe5 {[%emt 0:00:06]} 34. dxe5 {[%emt 0:00:01]} Bxf2 {[%emt 0:00:06]} 35. Rf1 {[%emt 0:00:18]} Bxg3+ {[%emt 0:00:51]} 36. Kxg3 {[%emt 0:00:02]} Qxe5+ {[%emt 0:00:01]} 37. Kh3 {[%emt 0:00:06]} Ne6 {[%emt 0:00:01]} 38. Qc4 {[%emt 0:00:16]} g5 {[%emt 0:00:06]} 39. Qe4 {[%emt 0:00:08]} Qxc3+ {[%emt 0:00:05]} 40. Kh2 {[%emt 0:00:02]} c5 {[%emt 0:00:25]} 41. Qf5 {[%emt 0:00:11]} Qg7 {[%emt 0:00:02]} 42. Bd5 {[%emt 0:00:02]} Nf4 {[%emt 0:00:11]} 43. Qc8+ {[%emt 0:00:03]} Qf8 {[%emt 0:00:01]} 44. Qxf8+ {[%emt 0:00:04]} Kxf8 {[%emt 0:00:00]} 45. Bc4 {[%emt 0:00:01]} Kg7 {[%emt 0:00:04]} 46. hxg5 {[%emt 0:00:03]} hxg5 {[%emt 0:00:01]} 47. Ra1 {[%emt 0:00:01]} f5 {[%emt 0:00:10]} 48. Ra6 {[%emt 0:00:01]} Ng6 {[%emt 0:00:02]} 49. Bd3 {[%emt 0:00:03]} Nh4 {[%emt 0:00:04]} 50. Rxa7+ {[%emt 0:00:03]} Kf6 {[%emt 0:00:01]} 51. Rc7 {[%emt 0:00:01]} Ke5 {[%emt 0:00:02]} 52. Be2 {[%emt 0:00:08]} Kd4 {[%emt 0:00:05]} 53. Rg7 {[%emt 0:00:05]} Ke3 {[%emt 0:00:13]} 54. Bd1 {[%emt 0:00:03]} c4 {[%emt 0:00:09]} 55. Kg3 {[%emt 0:00:11]} f4+ {[%emt 0:00:04]} 56. Kg4 {[%emt 0:00:01]} c3 {[%emt 0:00:05]} 57. Rxg5 {[%emt 0:00:01]} f3 {[%emt 0:00:04]} 58. Kxh4 {[%emt 0:00:05]} f2 {[%emt 0:00:09]} 59. Rf5 {[%emt 0:00:01]} Kd2 {[%emt 0:00:01]} 60. Ba4 {[%emt 0:00:04]} Ke1 {[%emt 0:00:01]} 61. Re5+ {[%emt 0:00:01]} Kd2 {[%emt 0:00:02]} 62. Rd5+ {[%emt 0:00:02]} Ke2 {[%emt 0:00:08]} 63. Kg3 {[%emt 0:00:06]} f1=Q {[%emt 0:00:08]} 64. Bb5+ {[%emt 0:00:02]} Ke1 {[%emt 0:00:01]} 65. Bxf1 {[%emt 0:00:04]} c2 {[%emt 0:00:00]} 66. Rc5 {[%emt 0:00:03]} Kd2 {[%emt 0:00:00]} 67. Rd5+ {[%emt 0:00:02]} Kc3 {[%emt 0:00:01]} 68. Rc5+ {[%emt 0:00:02]} Kd2 {[%emt 0:00:01]} 69. Rxc2+ {[%emt 0:00:04]} Kxc2 {[%emt 0:00:01]} 1/2-1/2